Cogmind - Beta 15 @@@ ROGUE MODE // 2025.07.15 @ 22:56:25 Player: Mae Result: Destroyed by D-53 Grenadier with Mini Grenade Launcher Performance ------------- Evolutions (0) 0 Regions Visited (2) 400 Robots Destroyed (8) 40 Value Destroyed (223) 223 Prototype IDs (0) 0 Alien Tech Used (0) 0 Bonus (0) 0 TOTAL SCORE: 663 Bonus ------- None Cogmind --------- Core Integrity 0/250 Matter 300/300 Energy 100/100 System Corruption 0% Temperature Cool (0) Movement Core (50) Location -10/Mines Parts ------- > --- POWER (1) -------- (None) > --- PROPULSION (2) --- (None) > --- UTILITY (2) ------ Signal Interpreter Core Shielding > --- WEAPON (2) ------- (None) > --- INVENTORY (5) ---- Seismic Detector Weapon Shielding Peak State ------------ > --- POWER ------------ Light Ion Engine > --- PROPULSION ------- Aluminum Leg Aluminum Leg > --- UTILITY ---------- Heat Sink Signal Interpreter > --- WEAPON ----------- EM Pulse Gun Assault Rifle > --- INVENTORY -------- Light Ion Engine Aluminum Leg [Rating: 7] Favorites ----------- Power Ion Engine Engine Ion Engine Propulsion Aluminum Leg Leg Aluminum Leg Utility Signal Interpreter Device Heat Sink Processor Signal Interpreter Protection Core Shielding Weapon Assault Rifle Energy Gun EM Pulse Gun Ballistic Gun Assault Rifle Build | -11 -10 -10 ------- Run | Yrd Mat Min Slots Evolved . | . . . Power . | . . . Propulsion . | . . . Utility . | . . . Weapon . | . . . Parts Attached 11 | 6 4 1 Power 2 | 1 1 . Engine 2 | 1 1 . Core . | . . . Reactor . | . . . Propulsion 4 | 2 1 1 Treads . | . . . Leg 4 | 2 1 1 Wheel . | . . . Hover . | . . . Flight . | . . . Utility 3 | 1 2 . Device 1 | 1 . . Storage . | . . . Processor 1 | . 1 . Hackware . | . . . Protection 1 | . 1 . Artifact . | . . . Weapon 2 | 2 . . Energy Gun 1 | 1 . . Energy Cannon . | . . . Ballistic Gun 1 | 1 . . Ballistic Cannon . | . . . Launcher . | . . . Special Weapon . | . . . Impact Weapon . | . . . Slashing Weapon . | . . . Piercing Weapon . | . . . Special Melee Weapon . | . . . Unidentified Prototypes . | . . . Parts Lost 7 | . 2 5 Power 1 | . . 1 Propulsion 4 | . 1 3 Utility . | . . . Weapon 2 | . 1 1 Highest Loss Streak 4 | . 2 4 To Critical Strikes . | . . . Average Backups 2 | 1 2 2 Power . | . . . Propulsion . | . 1 . Utility 1 | . 1 2 Weapon . | . . . Tool/Special . | . . . Unused Backups 5 | 2 1 2 Power 1 | . 1 . Propulsion 2 | 2 . . Utility 2 | . . 2 Weapon . | . . . Tool/Special . | . . . Average Slot Usage (%) 91 | . 95 80 Engine 14 | . 14 14 Leg 27 | . 28 25 Device 3 | . 5 . Processor 13 | . 12 14 Protection 10 | . 8 14 Energy Gun 8 | . 11 . Ballistic Gun 13 | . 14 12 Peak Build Rating 7 | 6 7 6 Average Rating 5 | 3 6 5 On Entrance 4 | . 6 6 Naked Turns . | . . . Heaviest Build 10 | 8 10 8 Greatest Support 20 | 20 20 20 Greatest Overweight (x) 1 | . . 1 Average Overweight (x) . | . . . Largest Inventory Capacity 5 | 5 5 5 Average Capacity 5 | 5 5 5 Most Carried 4 | 4 4 3 Average Carried 2 | 1 2 2 Final Capacity 5 | 5 5 5 Final Carried 3 | 2 3 2 Class Distribution -------------------- 100% | Mutant Dominant Class ---------------- Mutant | -10/Materials Mutant | -10/Mines Resources | -11 -10 -10 ----------- Run | Yrd Mat Min Matter Collected 396 | 265 85 46 Remotely . | . . . Salvage Created 380 | 99 235 46 Parts 20 | 8 12 . Haulers Intercepted . | . . . Recyclers Shooed . | . . . Parts Field Recycled . | . . . Retrieved Matter . | . . . Parts Self-Destructed . | . . . Prevented . | . . . Kills | -11 -10 -10 ------- Run | Yrd Mat Min Combat Hostiles Destroyed 9 | 1 4 4 Guns 7 | 1 2 4 AOE 2 | . 2 . Classes Destroyed 4 | 2 1 1 Tunneler 2 | 2 . . Recycler 1 | . 1 . Grunt 5 | 1 4 . Assembled 4 | . . 4 Best Kill Streak 4 | 3 3 4 Combat Bots Only 4 | 1 2 4 Max Kills in Single Turn 2 | 2 2 1 Gunslinging . | . . . Exploded 2 | . 2 . Melee . | . . . Uniques/NPCs Destroyed . | . . . Combat | -11 -10 -10 -------- Run | Yrd Mat Min Hostile Shots Fired 41 | 5 13 23 Missed 13 | 4 5 4 Hits 28 | 1 8 19 Melee 4 | . . 4 Projectile 24 | 1 8 15 AOE 7 | . . 7 Damage Taken 839 | 12 271 556 Core 259 | . 52 207 Absorbed by Shields . | . . . Redirected to Shielding 34 | . 3 31 Core Remaining (%) 100 | 100 . . Volleys Fired 35 | 5 17 13 Largest 2 | 2 2 1 Hottest 60 | 60 60 20 Shots Fired 55 | 10 32 13 Gun 55 | 10 32 13 Cannon . | . . . Launcher . | . . . Special . | . . . Kinetic 35 | 5 17 13 Thermal . | . . . Explosive . | . . . Electromagnetic 20 | 5 15 . Robot Hit Streak 5 | 3 5 5 Robot Miss Streak 2 | 1 2 2 Penetration Max . | . . . Secondary Targets . | . . . Shots Hit Robots 35 | 7 19 9 Core Hits 20 | 4 8 8 Critical Kills . | . . . Critical Parts Destroyed . | . . . Critical Strikes . | . . . Melee Attacks . | . . . Impact . | . . . Slashing . | . . . Piercing . | . . . Sneak Attacks . | . . . Combat Hostiles . | . . . Follow-up Attacks . | . . . Damage Inflicted 682 | 181 352 149 Guns 397 | 94 172 131 Cannons . | . . . Explosions 264 | 87 177 . Melee . | . . . Ramming 21 | . 3 18 Kinetic 237 | 40 66 131 Thermal 132 | 87 45 . Explosive 132 | . 132 . Electromagnetic 160 | 54 106 . Impact . | . . . Slashing . | . . . Piercing . | . . . Highest Corruption . | . . . Average Corruption . | . . . Corruption Purged . | . . . Corruption Blocked . | . . . Overload Shots . | . . . Overflow Damage 93 | . 93 . Projectiles . | . . . Explosions 93 | . 93 . Melee . | . . . Knockbacks . | . . . Impact . | . . . Kinetic . | . . . Secondary . | . . . Self-Inflicted Damage 177 | . 168 9 Shots 2 | . 2 . Rammed 5 | . . 5 Targets Rammed 6 | . 1 5 Kicked 1 | . 1 . Crushed . | . . . Highest Temperature 39 | 6 39 30 Average Temperature 15 | 6 19 15 Received Heat Transfer 203 | 6 57 140 Siege Activations . | . . . Martial Activations . | . . . Shielding Activations . | . . . Robots Disrupted . | . . . Combat Hostiles . | . . . Robots Corrupted . | . . . Combat Hostiles . | . . . Parts Fried . | . . . Impact Corruptions . | . . . Robots Melted . | . . . Combat Hostiles . | . . . Parts Melted . | . . . Heat Transferred 150 | 150 . . Parts Sabotaged . | . . . Parts Stolen . | . . . Parts Stripped . | . . . Power Chain Reactions 2 | 1 1 . Alert | -11 -10 -10 ------- Run | Yrd Mat Min Maximum Alert Level . | . . . Low Security (%) 100 | 100 100 100 Level 1 . | . . . Level 2 . | . . . Level 3 . | . . . Level 4 . | . . . Level 5 . | . . . High Security . | . . . Max Security . | . . . Peak Influence 83 | 30 83 14 Initial 14 | . . 14 Average 11 | 4 16 2 Influence Increases 173 | 30 143 . Destroy 0b10 Robot/C 100 | 20 80 . Destroy 0b10 Robot/NC 15 | 10 5 . Destroy Leader 10 | . 10 . Disable Machine 30 | . 30 . Destroy Structure 18 | . 18 . Influence Decreases 173 | 30 106 37 Entered New Map 23 | . . 23 Time Decay 130 | 30 86 14 Lost Part 20 | . 20 . Squads Dispatched . | . . . Investigation . | . . . Extermination . | . . . Reinforcement . | . . . Assault . | . . . Garrison . | . . . Intercept . | . . . Searches Triggered . | . . . Construction Impeded . | . . . Haulers Reinforced . | . . . Active Scanning Responses . | . . . Cargo Convoy Interrupts . | . . . Stealth | -11 -10 -10 --------- Run | Yrd Mat Min Distress Signals 2 | . 2 . Communications Jammed . | . . . Distress Signals . | . . . Times Spotted 21 | 1 7 13 Peak Tracking Total 20 | 1 2 20 Tactical Retreats 1 | . . 1 Traps | -11 -10 -10 ------- Run | Yrd Mat Min Traps Triggered . | . . . Indirectly . | . . . Trap Hack Attempts . | . . . Triggered . | . . . Disarmed . | . . . Reprogrammed . | . . . Reused . | . . . Traps Extracted . | . . . Installed . | . . . Triggered . | . . . Machines | -11 -10 -10 ---------- Run | Yrd Mat Min Machines Disabled 2 | . 2 . Max in Single Turn 2 | . 2 . Machines Repaired . | . . . Machines Dismantled . | . . . Machines Sabotaged . | . . . Overloaded Fab Kills . | . . . Hacking | -11 -10 -10 --------- Run | Yrd Mat Min Machines Accessed 2 | . 2 . Terminals 2 | . 2 . Fabricators . | . . . Repair Stations . | . . . Recycling Units . | . . . Scanalyzers . | . . . Garrison Access . | . . . Total Hacks 4 | . 4 . Successful 3 | . 3 . Failed 1 | . 1 . Catastrophic . | . . . Database Lockouts . | . . . Manual . | . . . Terminals 4 | . 4 . Fabricators . | . . . Repair Stations . | . . . Recycling Units . | . . . Scanalyzers . | . . . Garrison Access . | . . . Terminal Hacks 3 | . 3 . Record 3 | . 3 . Fabricator Hacks . | . . . Repair Station Hacks . | . . . Recycling Unit Hacks . | . . . Scanalyzer . | . . . Garrison Access Hacks . | . . . Unauthorized Hacks . | . . . Terminals . | . . . Fabricators . | . . . Repair Stations . | . . . Recycling Units . | . . . Scanalyzers . | . . . Garrison Access . | . . . Data Cores Recovered . | . . . Used . | . . . Hacking Detections 1 | . 1 . Full Trace Events . | . . . Feedback Events . | . . . Feedback Blocked . | . . . Robot Schematics Acquired . | . . . Robots Built . | . . . Authchips . | . . . Time . | . . . Total Robot Build Rating . | . . . Part Schematics Acquired . | . . . Parts Built . | . . . Authchips . | . . . Time . | . . . Total Part Build Rating . | . . . Parts Repaired . | . . . Time . | . . . Parts Recycled . | . . . Recycled Matter . | . . . Retrieved Matter . | . . . Retrieved Components . | . . . Parts Scanalyzed . | . . . Part Schematics Acquired . | . . . Parts Damaged . | . . . Bothacking | -11 -10 -10 ------------ Run | Yrd Mat Min Used RIF Installer . | . . . Robots Hacked . | . . . Non-combat . | . . . Combat . | . . . Robot Hacks Applied . | . . . Relay Couplers Released . | . . . Fabnet Peak Effective % . | . . . Robots Rewired . | . . . Allies Hacked . | . . . Hacks Repelled . | . . . Allies | -11 -10 -10 -------- Run | Yrd Mat Min Total Allies . | . . . Largest Group . | . . . Highest-Rated Group . | . . . Highest-Rated Ally . | . . . Total Orders . | . . . Ally Attacks . | . . . Total Damage . | . . . Kills . | . . . Allies Corrupted . | . . . Allies Melted . | . . . Intel | -11 -10 -10 ------- Run | Yrd Mat Min Active Infowar (turns) . | . . . Robot Analysis Total . | . . . Derelict Logs Recovered . | . . . Drone Launches . | . . . Drone Recoveries . | . . . Exploration | -11 -10 -10 ------------- Run | Yrd Mat Min Turns Passed 722 | 146 426 150 Spaces Moved 514 | 114 302 98 Core 32 | 31 . 1 Treads . | . . . Legs 482 | 83 302 97 Wheels . | . . . Hover . | . . . Flight . | . . . Fastest Speed 50 | 50 120 100 Average Speed 115 | 100 120 119 Slowest Speed 120 | 120 120 120 Overloaded Moves . | . . . Propulsion Burnouts . | . . . Robots Hopped . | . . . Potential Cave-ins 1 | . 1 . Cave-ins Triggered . | . . . Exploration Rate (%) 19 | 5 34 18 Regions Visited 2 Branch Regions 1 Pre-discovered Areas . | . . . Known Exits Taken 1 | . 1 . Unknown Exits Taken 1 | 1 . . Scrap Searched . | . . . Spaces Dug . | . . . Terrain Destroyed 18 | . 18 . Melee . | . . . Projectile . | . . . AOE 18 | . 18 . Terrain Rammed . | . . . Walls Destroyed . | . . . Machines Disabled . | . . . Actions | -11 -10 -10 --------- Run | Yrd Mat Min Total 588 | 136 335 117 Wait 3 | . 3 . Move 512 | 113 301 98 Hop . | . . . Pick Up 15 | 10 5 . Fast Attach . | . . . Attach 10 | 6 3 1 Detach 1 | . 1 . Swap 1 | . 1 . Drop 5 | 2 3 . Fire 35 | 5 17 13 Melee . | . . . Ram 5 | . . 5 Kick 1 | . 1 . Crush . | . . . Escape Stasis . | . . . Rewire . | . . . Trap . | . . . Miscellaneous . | . . . Route ------- -11/Scrapyard -10/Materials -10/Mines History --------- Turn | Location | Event 2 | -11/Scrapyard | Met Revision 17 83 | -11/Scrapyard | Discovered new exit (range 8) 147 | -11/Scrapyard | Entered Materials 322 | -10/Materials | Build established: Mutant 546 | -10/Materials | Discovered new exit (range 8) 572 | -10/Materials | Identified exit to Mines 573 | -10/Materials | Entered Mines 603 | -10/Mines | Assembled infested the area 608 | -10/Mines | Assisted by a Guerilla fighting off Assembled 709 | -10/Mines | Core integrity fell below 50% 722 | -10/Mines | Core integrity fell below 20% 723 | -10/Mines | Destroyed by D-53 Grenadier with Mini Grenade Launcher Last Messages --------------- as-46135 destroyed. Acquired 8 matter. Acquired 14 matter. Acquired 15 matter. Acquired 9 matter. Assault Rifle destroyed. Aluminum Leg destroyed. as-00377 destroyed. Aluminum Leg destroyed. Slammed into D-53 Grenadier. Destabilizing: System interference. Signal Interpreter temporarily disabled. Slammed into D-53 Grenadier. The unstable cave ceiling collapses. Slammed into D-53 Grenadier. Ion Engine destroyed. Slammed into D-53 Grenadier. The unstable cave ceiling collapses. Slammed into D-53 Grenadier. The unstable cave ceiling collapses. Map ----- +----------------------------------------------------+ | | | | | | | | | | | | | | | ?????????????????????????????????????????????????? | | ?????????????????????????????????????????????????? | | ?????????????????????????????????????????????????? | | ?????????????????????????????????????????????????? | | ?????????????????????????????????????????????????? | | ?????????????????????????????????????????????????? | | ??????????????????????##?????????????????????????? | | ????????????????????### ###??????????????????????? | | ????????????????????# ##????????????????????? | | ?????????????????????% #????????????????????? | | ?????????????????????= # #????????????????????? | | ?????????????????????# < ##???????????????????? | | ?????????????????????# ##??????????????????? | | ?????????????????????# ???????????????????? | | ?????????????????????? #???????????????????? | | ?????????????? ?????? ##??#???????????????? | | ????????????? ???### % ## #???????????????? | | ??????????????# ?## #=###?????????????? | | ??????????????## ## #@d |%= #?????????????? | | ????????????### # % ## %== ????????? | | ????????????# ##?????????????????? | | ?????????? ! % #?????????????????? | | ?????????? =% ##?????????????????? | | ??????????? # # #??????????????????? | | ????????????# # ##?????????????????? | | ????????????### # % # ###???????????????? | | ??????????????########## ##??????????????? | | ???????????????????????## #??????????????? | | ????????????????????????## ##?????????????? | | ?????????????????????????# #?????????????? | | ?????????????????????????# ##?????????????? | | ?????????????????????????## #??????????????? | | ??????????????????????????# #??????????????? | | ????????????????????####### # #??????????????? | | ????????????????????# ###??????????????? | | ????????????????????# #????????????????? | | ????????????????????# ##########????????????????? | | ????????????????????# #?????????????????????????? | | ????????????????????# #?????????????????????????? | | ????????????????????# ######????????????????????? | | ????????????????????# ## ##???????????????????? | | ???????????????????## ########????????????? | | ???????????????????# #????????????? | +----------------------------------------------------+ Best States ------------- Heat Dissipation 35 Energy Generation 10 Energy Capacity 250 Matter Stores 300 Matter Capacity 300 Sight Range 16 Terrain Scan Density 10 Core Shielding 20 Evasion (%) 55 Item Schematics ----------------- None Robot Schematics ------------------ None Fabricated ------------ Nothing Repaired ---------- Nothing Alien Tech Used ----------------- None Achievements -------------- Hunted Challenges ------------ None Game ------ Seed CannonDispersalBoregun Manual? 0 Play Time 00:16:07 Cumulative 0.3 hours Start 2025.07.15 @ 22:40:22 End 2025.07.15 @ 22:56:25 Sessions 1 Manual Loads 0 Difficulty Rogue Special Mode None Game No. 2 Rogue 2 Adventurer 0 Explorer 0 Win Type - Total 0 Types 0/0/0/0/0/0/0/0/0/0 Lore% 0 Gallery% 1 Achievement% 10 Wizard Run 0 Options --------- Layout 1 ASCII 0 Keyboard 1 Movement Numpad Keybinds 0 Fullscreen 2 Font 32/SmallcapsGlow Map View 50x35 Zoom Use 0% Tactical HUD 0 Map Filters NONE Filters NONE Steam 1 RUN: e1ecf85e-2814-42f6-b662-55b06c69b1c6